fUSD/lending_fUSD_20260605
["ID","MTS","AMOUNT","RATE_DAILY","PERIOD"]
[424138177,1780607496000,-521.5,0.00038082,11]
[424138196,1780607496000,-500.0,0.00038082,11]
[424138180,1780607496000,-500.0,0.00038082,11]
[424138200,1780607496000,-301.25308573,0.00038082,11]
[424138193,1780607496000,-500.0,0.00038082,11]
[424138188,1780607496000,-670.74,0.00038082,11]
[424138189,1780607496000,-500.0,0.00038082,11]
[424138181,1780607496000,-566.1,0.00038082,11]
[424138190,1780607496000,-3784.18,0.00038082,11]
[424138186,1780607496000,-559.05,0.00038082,11]
[424138187,1780607496000,-500.0,0.00038082,11]
[424138185,1780607496000,-755.81,0.00038082,11]
[424138184,1780607496000,-500.0,0.00038082,11]
[424138191,1780607496000,-500.0,0.00038082,11]
[424138267,1780607497000,-3613.85,0.00038082,11]
[424138271,1780607497000,-674.66,0.00038082,11]
[424138269,1780607497000,-500.0,0.00038082,11]
[424138277,1780607497000,-500.0,0.00038082,11]
[424138259,1780607497000,-500.0,0.00038082,11]
[424138264,1780607497000,-5109.23,0.00038082,11]
[424138260,1780607497000,-3559.2,0.00038082,11]
[424138258,1780607497000,-3108.82,0.00038082,11]
[424138261,1780607497000,-11048.61,0.00038082,11]
[424138262,1780607497000,-500.0,0.00038082,11]
[424138274,1780607497000,-500.0,0.00038082,11]
[424138265,1780607497000,-3404.48,0.00038082,11]
[424138263,1780607497000,-3194.29,0.00038082,11]
[424138268,1780607497000,-5602.37,0.00038082,11]
[424138272,1780607497000,-500.0,0.00038082,11]
[424138266,1780607497000,-2986.9,0.00038082,11]
[424138270,1780607497000,-574.18,0.00038082,11]
[424138276,1780607497000,-12766.74,0.00038082,11]
[424138279,1780607497000,-1000.0,0.00038082,11]
[424138275,1780607497000,-500.0,0.00038082,11]
[424138273,1780607497000,-8973.49,0.00038082,11]
[424138280,1780607497000,-2214.43,0.00038082,11]
[424138282,1780607497000,-1659.94,0.00038082,11]
[424138284,1780607497000,-4748.28,0.00038082,11]
[424138291,1780607497000,-42026.07,0.00038082,11]
[424138285,1780607497000,-500.0,0.00038082,11]
[424138283,1780607497000,-7062.86,0.00038082,11]
[424138281,1780607497000,-1030.09,0.00038082,11]
[424138278,1780607497000,-500.0,0.00038082,11]
[424138256,1780607497000,-500.0,0.00038082,11]
[424138228,1780607497000,-500.0,0.00038082,11]
[424138254,1780607497000,-500.0,0.00038082,11]
[424138292,1780607497000,-500.0,0.00038082,11]
[424138229,1780607497000,-2971.37,0.00038082,11]
[424138227,1780607497000,-3678.48,0.00038082,11]
[424138231,1780607497000,-611.11,0.00038082,11]
[424138241,1780607497000,-500.0,0.00038082,11]
[424138230,1780607497000,-612.5,0.00038082,11]
[424138232,1780607497000,-500.0,0.00038082,11]
[424138233,1780607497000,-500.0,0.00038082,11]
[424138239,1780607497000,-1000.88,0.00038082,11]
[424138237,1780607497000,-500.0,0.00038082,11]
[424138236,1780607497000,-528.3,0.00038082,11]
[424138234,1780607497000,-500.0,0.00038082,11]
[424138238,1780607497000,-551.55,0.00038082,11]
[424138255,1780607497000,-534.54,0.00038082,11]
[424138235,1780607497000,-813.02,0.00038082,11]
[424138242,1780607497000,-425.61003653,0.00038082,11]
[424138243,1780607497000,-500.0,0.00038082,11]
[424138250,1780607497000,-500.0,0.00038082,11]
[424138245,1780607497000,-857.23,0.00038082,11]
[424138244,1780607497000,-3929.4,0.00038082,11]
[424138247,1780607497000,-500.0,0.00038082,11]
[424138249,1780607497000,-500.0,0.00038082,11]
[424138252,1780607497000,-500.0,0.00038082,11]
[424138246,1780607497000,-500.0,0.00038082,11]
[424138248,1780607497000,-500.0,0.00038082,11]
[424138251,1780607497000,-500.0,0.00038082,11]
[424138253,1780607497000,-500.0,0.00038082,11]
[424138257,1780607497000,-500.0,0.00038082,11]
[424138240,1780607497000,-693.12,0.00038082,11]
[424138290,1780607497000,-500.0,0.00038082,11]
[424138351,1780607497000,-683.5,0.00038082,11]
[424138287,1780607497000,-3279.15,0.00038082,11]
[424138323,1780607497000,-4272.54,0.00038082,11]
[424138322,1780607497000,-4095.64,0.00038082,11]
[424138324,1780607497000,-5268.13,0.00038082,11]
[424138325,1780607497000,-500.0,0.00038082,11]
[424138328,1780607497000,-500.0,0.00038082,11]
[424138326,1780607497000,-500.0,0.00038082,11]
[424138329,1780607497000,-696.57,0.00038082,11]
[424138327,1780607497000,-500.0,0.00038082,11]
[424138332,1780607497000,-8231.59,0.00038082,11]
[424138335,1780607497000,-7481.71,0.00038082,11]
[424138342,1780607497000,-500.0,0.00038082,11]
[424138336,1780607497000,-2885.57,0.00038082,11]
[424138341,1780607497000,-3629.92,0.00038082,11]
[424138319,1780607497000,-500.0,0.00038082,11]
[424138338,1780607497000,-587.34668741,0.00038082,11]
[424138344,1780607497000,-500.0,0.00038082,11]
[424138343,1780607497000,-3491.73,0.00038082,11]
[424138339,1780607497000,-500.0,0.00038082,11]
[424138333,1780607497000,-500.0,0.00038082,11]
[424138337,1780607497000,-500.0,0.00038082,11]
[424138340,1780607497000,-500.0,0.00038082,11]
[424138346,1780607497000,-3854.17,0.00038082,11]
[424138348,1780607497000,-3702.47,0.00038082,11]
[424138286,1780607497000,-4258.06,0.00038082,11]
[424138349,1780607497000,-500.0,0.00038082,11]
[424138345,1780607497000,-7462.52,0.00038082,11]
[424138352,1780607497000,-500.0,0.00038082,11]
[424138350,1780607497000,-500.0,0.00038082,11]
[424138334,1780607497000,-500.0,0.00038082,11]
[424138321,1780607497000,-1520.84,0.00038082,11]
[424138347,1780607497000,-500.0,0.00038082,11]
[424138330,1780607497000,-1070.68,0.00038082,11]
[424138331,1780607497000,-500.0,0.00038082,11]
[424138288,1780607497000,-4051.49,0.00038082,11]
[424138289,1780607497000,-646.93,0.00038082,11]
[424138295,1780607497000,-1136.96,0.00038082,11]
[424138305,1780607497000,-500.0,0.00038082,11]
[424138306,1780607497000,-500.0,0.00038082,11]
[424138297,1780607497000,-6291.69,0.00038082,11]
[424138300,1780607497000,-878.15,0.00038082,11]
[424138296,1780607497000,-500.0,0.00038082,11]
[424138298,1780607497000,-192.01977751,0.00038082,11]
[424138294,1780607497000,-2213.59,0.00038082,11]
[424138299,1780607497000,-710.84,0.00038082,11]
[424138302,1780607497000,-592.72,0.00038082,11]
[424138303,1780607497000,-500.0,0.00038082,11]
[424138293,1780607497000,-500.0,0.00038082,11]
[424138301,1780607497000,-60421.87,0.00038082,11]
[424138304,1780607497000,-500.0,0.00038082,11]
[424138317,1780607497000,-4656.83,0.00038082,11]
[424138318,1780607497000,-500.0,0.00038082,11]
[424138315,1780607497000,-500.0,0.00038082,11]
[424138314,1780607497000,-2870.25,0.00038082,11]
[424138313,1780607497000,-1515.33,0.00038082,11]
[424138316,1780607497000,-550.43,0.00038082,11]
[424138311,1780607497000,-500.0,0.00038082,11]
[424138308,1780607497000,-2494.03,0.00038082,11]
[424138310,1780607497000,-500.0,0.00038082,11]
[424138307,1780607497000,-500.0,0.00038082,11]
[424138320,1780607497000,-500.0,0.00038082,11]
[424138312,1780607497000,-500.0,0.00038082,11]
[424138309,1780607497000,-2613.9,0.00038082,11]
[424138375,1780607498000,-4385.53,0.00038082,11]
[424138378,1780607498000,-4478.44,0.00038082,11]
[424138382,1780607498000,-500.0,0.00038082,11]
[424138385,1780607498000,-7726.77,0.00038082,11]
[424138395,1780607498000,-674.62,0.00038082,11]
[424138397,1780607498000,-500.0,0.00038082,11]
[424138386,1780607498000,-500.0,0.00038082,11]
[424138384,1780607498000,-500.0,0.00038082,11]
[424138389,1780607498000,-3691.76,0.00038082,11]
[424138388,1780607498000,-876.27,0.00038082,11]
[424138380,1780607498000,-500.0,0.00038082,11]
[424138399,1780607498000,-531.93,0.00038082,11]
[424138394,1780607498000,-728.56,0.00038082,11]
[424138391,1780607498000,-284.16907174,0.00038082,11]
[424138387,1780607498000,-225.36632863,0.00038082,11]
[424138393,1780607498000,-500.0,0.00038082,11]
[424138392,1780607498000,-500.0,0.00038082,11]
[424138398,1780607498000,-3563.89,0.00038082,11]
[424138400,1780607498000,-500.0,0.00038082,11]
[424138401,1780607498000,-665.08,0.00038082,11]
[424138402,1780607498000,-3546.02,0.00038082,11]
[424138403,1780607498000,-3494.2,0.00038082,11]
[424138381,1780607498000,-578.29,0.00038082,11]
[424138390,1780607498000,-500.0,0.00038082,11]
[424138379,1780607498000,-1928.99,0.00038082,11]
[424138362,1780607498000,-2564.12,0.00038082,11]
[424138376,1780607498000,-5003.27,0.00038082,11]
[424138404,1780607498000,-3412.16,0.00038082,11]
[424138356,1780607498000,-4447.46,0.00038082,7]
[424138357,1780607498000,-500.0,0.00038082,11]
[424138355,1780607498000,-6161.84,0.00038082,11]
[424138354,1780607498000,-28929.84,0.00038082,11]
[424138353,1780607498000,-500.0,0.00038082,11]
[424138358,1780607498000,-500.0,0.00038082,11]
[424138361,1780607498000,-3298.28,0.00038082,11]
[424138359,1780607498000,-2404.02,0.00038082,11]
[424138370,1780607498000,-500.0,0.00038082,11]
[424138360,1780607498000,-500.0,0.00038082,11]
[424138369,1780607498000,-41097.1,0.00038082,11]
[424138366,1780607498000,-500.0,0.00038082,11]
[424138363,1780607498000,-500.0,0.00038082,11]
[424138371,1780607498000,-2636.65,0.00038082,11]
[424138365,1780607498000,-2625.55,0.00038082,11]
[424138367,1780607498000,-500.0,0.00038082,11]
[424138364,1780607498000,-500.0,0.00038082,11]
[424138368,1780607498000,-3061.44,0.00038082,11]
[424138373,1780607498000,-500.0,0.00038082,11]
[424138372,1780607498000,-3000.27,0.00038082,11]
[424138383,1780607498000,-500.0,0.00038082,11]
[424138374,1780607498000,-3072.47,0.00038082,11]
[424138377,1780607498000,-500.0,0.00038082,11]
[424138405,1780607498000,-3628.99,0.00038082,11]
[424138396,1780607498000,-3569.41,0.00038082,11]
[424138409,1780607498000,-6206.91,0.00038082,11]
[424138439,1780607498000,-500.0,0.00038082,11]
[424138435,1780607498000,-2831.2,0.00038082,11]
[424138438,1780607498000,-5779.59,0.00038082,11]
[424138437,1780607498000,-500.0,0.00038082,11]
[424138436,1780607498000,-500.0,0.00038082,11]
[424138451,1780607498000,-500.0,0.00038082,11]
[424138441,1780607498000,-543.72372491,0.00038082,11]
[424138440,1780607498000,-2411.26,0.00038082,11]
[424138442,1780607498000,-4510.34,0.00038082,11]
[424138443,1780607498000,-523.05,0.00038082,11]
[424138444,1780607498000,-500.0,0.00038082,11]
[424138434,1780607498000,-4647.15,0.00038082,11]
[424138448,1780607498000,-500.0,0.00038082,11]
[424138445,1780607498000,-4348.87,0.00038082,11]
[424138446,1780607498000,-1171.82,0.00038082,11]
[424138447,1780607498000,-3112.66,0.00038082,11]
[424138453,1780607498000,-500.0,0.00038082,11]
[424138459,1780607498000,-500.0,0.00038082,11]
[424138454,1780607498000,-500.0,0.00038082,11]
[424138455,1780607498000,-500.0,0.00038082,11]
[424138452,1780607498000,-500.0,0.00038082,11]
[424138456,1780607498000,-561.85,0.00038082,11]
[424138458,1780607498000,-3339.36,0.00038082,11]
[424138406,1780607498000,-500.0,0.00038082,11]
[424138450,1780607498000,-15890.34,0.00038082,11]
[424138432,1780607498000,-500.0,0.00038082,11]
[424138449,1780607498000,-595.3,0.00038082,11]
[424138433,1780607498000,-500.0,0.00038082,11]
[424138429,1780607498000,-719.33,0.00038082,7]
[424138407,1780607498000,-9429.18,0.00038082,11]
[424138408,1780607498000,-9837.19,0.00038082,11]
[424138411,1780607498000,-8627.97,0.00038082,11]
[424138410,1780607498000,-500.0,0.00038082,11]
[424138413,1780607498000,-500.0,0.00038082,11]
[424138416,1780607498000,-718.88,0.00038082,11]
[424138415,1780607498000,-2900.38,0.00038082,11]
[424138412,1780607498000,-500.0,0.00038082,11]
[424138418,1780607498000,-500.0,0.00038082,11]
[424138417,1780607498000,-6377.55,0.00038082,11]
[424138424,1780607498000,-500.0,0.00038082,11]
[424138414,1780607498000,-290.15559728,0.00038082,11]
[424138421,1780607498000,-500.0,0.00038082,11]
[424138430,1780607498000,-500.0,0.00038082,11]
[424138431,1780607498000,-3101.67,0.00038082,11]
[424138428,1780607498000,-500.0,0.00038082,11]
[424138420,1780607498000,-3104.62,0.00038082,11]
[424138425,1780607498000,-12422.13,0.00038082,11]
[424138419,1780607498000,-533.68,0.00038082,11]
[424138422,1780607498000,-4154.75,0.00038082,11]
[424138427,1780607498000,-953.86,0.00038082,10]
[424138423,1780607498000,-500.0,0.00038082,11]
[424138426,1780607498000,-500.0,0.00038082,11]
[424138457,1780607498000,-4798.39,0.00038082,11]
[424138495,1780607499000,-500.0,0.00038082,11]
[424138500,1780607499000,-500.0,0.00038082,11]
[424138496,1780607499000,-558.09,0.00038082,11]
[424138497,1780607499000,-2024.03,0.00038082,11]
[424138499,1780607499000,-601.14,0.00038082,11]
[424138498,1780607499000,-500.0,0.00038082,11]
[424138502,1780607499000,-500.0,0.00038082,11]
[424138504,1780607499000,-500.0,0.00038082,11]
[424138503,1780607499000,-8451.65,0.00038082,11]
[424138492,1780607499000,-500.0,0.00038082,11]
[424138501,1780607499000,-633.72,0.00038082,11]
[424138505,1780607499000,-500.0,0.00038082,11]
[424138494,1780607499000,-2829.34,0.00038082,11]
[424138507,1780607499000,-500.0,0.00038082,11]
[424138521,1780607499000,-518.51,0.00038082,11]
[424138509,1780607499000,-6296.36,0.00038082,11]
[424138506,1780607499000,-6469.94,0.00038082,11]
[424138510,1780607499000,-2401.0,0.00038082,11]
[424138511,1780607499000,-2685.34,0.00038082,11]
[424138517,1780607499000,-3048.3,0.00038082,11]
[424138512,1780607499000,-3072.94,0.00038082,11]
[424138515,1780607499000,-11634.89,0.00038082,11]
[424138516,1780607499000,-500.0,0.00038082,11]
[424138514,1780607499000,-500.0,0.00038082,11]
[424138513,1780607499000,-500.0,0.00038082,11]
[424138519,1780607499000,-2357.35,0.00038082,11]
[424138529,1780607499000,-4751.19,0.00038082,11]
[424138493,1780607499000,-3178.87,0.00038082,11]
[424138508,1780607499000,-757.35,0.00038082,11]
[424138490,1780607499000,-500.0,0.00038082,11]
[424138463,1780607499000,-500.0,0.00038082,11]
[424138480,1780607499000,-500.0,0.00038082,11]
[424138460,1780607499000,-4334.54,0.00038082,11]
[424138461,1780607499000,-3576.54,0.00038082,11]
[424138462,1780607499000,-500.0,0.00038082,11]
[424138464,1780607499000,-500.0,0.00038082,11]
[424138520,1780607499000,-157.99541854,0.00038082,11]
[424138466,1780607499000,-4311.22,0.00038082,11]
[424138474,1780607499000,-524.18,0.00038082,11]
[424138476,1780607499000,-3359.97,0.00038082,11]
[424138477,1780607499000,-702.74,0.00038082,11]
[424138478,1780607499000,-500.0,0.00038082,11]
[424138475,1780607499000,-500.0,0.00038082,11]
[424138473,1780607499000,-3336.46,0.00038082,11]
[424138468,1780607499000,-500.0,0.00038082,11]
[424138471,1780607499000,-500.0,0.00038082,11]
[424138469,1780607499000,-500.0,0.00038082,11]
[424138465,1780607499000,-500.0,0.00038082,11]
[424138467,1780607499000,-9643.11,0.00038082,11]
[424138472,1780607499000,-3337.69,0.00038082,11]
[424138470,1780607499000,-2873.09,0.00038082,11]
[424138479,1780607499000,-3032.7,0.00038082,11]
[424138484,1780607499000,-500.0,0.00038082,11]
[424138481,1780607499000,-6996.9,0.00038082,11]
[424138482,1780607499000,-3111.92,0.00038082,11]
[424138483,1780607499000,-571.38,0.00038082,11]
[424138485,1780607499000,-1136.83,0.00038082,11]
[424138491,1780607499000,-4507.58,0.00038082,11]
[424138488,1780607499000,-3790.95,0.00038082,11]
[424138486,1780607499000,-4650.59,0.00038082,11]
[424138487,1780607499000,-500.0,0.00038082,11]
[424138489,1780607499000,-4107.63,0.00038082,11]
[424138518,1780607499000,-12334.13,0.00038082,11]
[424138533,1780607499000,-500.0,0.00038082,11]
[424138523,1780607499000,-500.0,0.00038082,11]
[424138564,1780607499000,-1243.01,0.00038082,11]
[424138555,1780607499000,-15648.77,0.00038082,11]
[424138559,1780607499000,-500.0,0.00038082,11]
[424138558,1780607499000,-2997.46,0.00038082,11]
[424138565,1780607499000,-4028.7,0.00038082,11]
[424138561,1780607499000,-500.0,0.00038082,11]
[424138563,1780607499000,-3145.9,0.00038082,11]
[424138560,1780607499000,-500.0,0.00038082,11]
[424138527,1780607499000,-4545.69,0.00038082,11]
[424138568,1780607499000,-5211.17,0.00038082,11]
[424138580,1780607499000,-500.0,0.000381,14]
[424138578,1780607499000,-282.1,0.0003809,93]
[424138579,1780607499000,-500.0,0.000381,14]
[424138567,1780607499000,-2827.17,0.00038082,11]
[424138570,1780607499000,-500.0,0.00038082,11]
[424138577,1780607499000,-151.19220666,0.00038089,2]
[424138571,1780607499000,-3001.73,0.00038082,11]
[424138569,1780607499000,-1666.07,0.00038082,11]
[424138576,1780607499000,-164.0,0.00038086,11]
[424138575,1780607499000,-257.75,0.00038086,120]
[424138573,1780607499000,-150.0,0.00038086,120]
[424138572,1780607499000,-199.12,0.00038086,120]
[424138574,1780607499000,-269.2,0.00038086,120]
[424138581,1780607499000,-500.0,0.000381,14]
[424138586,1780607499000,-75809.38,0.000381,2]
[424138584,1780607499000,-4008.95,0.000381,2]
[424138583,1780607499000,-352.22097883,0.000381,2]
[424138585,1780607499000,-44650.63,0.000381,2]
[424138582,1780607499000,-500.0,0.000381,14]
[424138566,1780607499000,-500.0,0.00038082,11]
[424138557,1780607499000,-500.0,0.00038082,11]
[424138562,1780607499000,-500.0,0.00038082,11]
[424138554,1780607499000,-500.0,0.00038082,11]
[424138526,1780607499000,-500.0,0.00038082,11]
[424138522,1780607499000,-667.01,0.00038082,11]
[424138528,1780607499000,-1942.96,0.00038082,11]
[424138524,1780607499000,-500.0,0.00038082,11]
[424138556,1780607499000,-4440.1,0.00038082,11]
[424138530,1780607499000,-500.0,0.00038082,11]
[424138539,1780607499000,-543.36,0.00038082,11]
[424138532,1780607499000,-500.0,0.00038082,11]
[424138535,1780607499000,-500.0,0.00038082,11]
[424138537,1780607499000,-5259.59,0.00038082,11]
[424138538,1780607499000,-4425.91,0.00038082,11]
[424138531,1780607499000,-3857.65,0.00038082,11]
[424138534,1780607499000,-7429.85,0.00038082,11]
[424138540,1780607499000,-4600.9,0.00038082,11]
[424138525,1780607499000,-4887.15,0.00038082,11]
[424138551,1780607499000,-513.38,0.00038082,11]
[424138553,1780607499000,-500.0,0.00038082,11]
[424138552,1780607499000,-500.0,0.00038082,11]
[424138547,1780607499000,-500.0,0.00038082,11]
[424138550,1780607499000,-500.0,0.00038082,11]
[424138549,1780607499000,-4490.65,0.00038082,11]
[424138546,1780607499000,-3896.22,0.00038082,11]
[424138536,1780607499000,-631.71,0.00038082,11]
[424138545,1780607499000,-5178.13,0.00038082,11]
[424138542,1780607499000,-2173.31,0.00038082,11]
[424138548,1780607499000,-4252.57,0.00038082,11]
[424138543,1780607499000,-3491.63,0.00038082,11]
[424138541,1780607499000,-4400.8,0.00038082,11]
[424138544,1780607499000,-648.06,0.00038082,11]
[424138589,1780607500000,-6419.45135905,0.000381,2]
[424138588,1780607500000,-44563.04468038,0.000381,2]
[424138587,1780607500000,-997.84,0.000381,2]
[424138591,1780607500000,-500.0,0.00012521,2]
[424138594,1780607500000,-512.85,0.00027595,7]
[424138593,1780607500000,-2726.95,0.000216,2]
[424138592,1780607500000,-152.0,0.00013757,2]
[424138595,1780607500000,-412.4258096,0.00028767,2]
[424138590,1780607500000,-4504.45413352,0.000381,2]
[424138605,1780607501000,-51.65252128,0.00033191,30]
[424138606,1780607501000,-286.2350021,0.00034908,2]
[424138604,1780607501000,-461.19747872,0.00033191,30]
[424138603,1780607501000,-933.0,0.00027058,2]
[424138602,1780607501000,-1059.005,0.00024058,2]
[424138607,1780607501000,-933.0,0.00030058,2]
[424138600,1780607501000,-496.97332255,0.00035616,7]
[424138601,1780607501000,-549.91596458,0.00035616,7]
[424138598,1780607501000,-559.35088554,0.00034917,2]
[424138599,1780607501000,-177.8800801,0.00035616,7]
[424138596,1780607501000,-87.90827436,0.00028767,2]
[424138597,1780607501000,-512.85,0.00030393,7]
[424138610,1780607501000,-364.32470981,0.00034917,2]
[424138612,1780607501000,-674.85340265,0.00035616,7]
[424138609,1780607501000,-300.0,0.00034917,2]
[424138608,1780607501000,-1779.5983979,0.00034908,2]
[424138621,1780607501000,-674.85340265,0.00035616,7]
[424138619,1780607501000,-674.85340265,0.00035616,7]
[424138620,1780607501000,-674.85340265,0.00035616,7]
[424138615,1780607501000,-674.85340265,0.00035616,7]
[424138622,1780607501000,-674.85340265,0.00035616,7]
[424138617,1780607501000,-674.85340265,0.00035616,7]
[424138613,1780607501000,-453.82977263,0.00035616,7]
[424138616,1780607501000,-674.85340265,0.00035616,7]
[424138611,1780607501000,-124.93743807,0.00035616,7]
[424138618,1780607501000,-674.85340265,0.00035616,7]
[424138614,1780607501000,-221.02363002,0.00035616,7]
[424138659,1780607502000,-674.85340265,0.00035616,7]
[424138663,1780607502000,-674.85340265,0.00035616,7]
[424138660,1780607502000,-674.85340265,0.00035616,7]
[424138656,1780607502000,-674.85340265,0.00035616,7]
[424138654,1780607502000,-674.85340265,0.00035616,7]
[424138646,1780607502000,-674.85340265,0.00035616,7]
[424138648,1780607502000,-674.85340265,0.00035616,7]
[424138647,1780607502000,-674.85340265,0.00035616,7]
[424138658,1780607502000,-674.85340265,0.00035616,7]
[424138652,1780607502000,-674.85340265,0.00035616,7]
[424138667,1780607502000,-674.85340265,0.00035616,7]
[424138668,1780607502000,-749.83711406,0.00035616,7]
[424138664,1780607502000,-674.85340265,0.00035616,7]
[424138666,1780607502000,-674.85340265,0.00035616,7]
[424138657,1780607502000,-674.85340265,0.00035616,7]
[424138662,1780607502000,-674.85340265,0.00035616,7]
[424138650,1780607502000,-674.85340265,0.00035616,7]
[424138661,1780607502000,-674.85340265,0.00035616,7]
[424138670,1780607502000,-674.85340265,0.00035616,7]
[424138680,1780607502000,-674.85340265,0.00035616,7]
[424138669,1780607502000,-674.85340265,0.00035616,7]
[424138677,1780607502000,-674.85340265,0.00035616,7]
[424138674,1780607502000,-674.85340265,0.00035616,7]
[424138665,1780607502000,-674.85340265,0.00035616,7]
[424138651,1780607502000,-674.85340265,0.00035616,7]
[424138644,1780607502000,-674.85340265,0.00035616,7]
[424138649,1780607502000,-674.85340265,0.00035616,7]
[424138630,1780607502000,-674.85340265,0.00035616,7]
[424138631,1780607502000,-674.85340265,0.00035616,7]
[424138624,1780607502000,-674.85340265,0.00035616,7]
[424138623,1780607502000,-674.85340265,0.00035616,7]
[424138625,1780607502000,-674.85340265,0.00035616,7]
[424138626,1780607502000,-674.85340265,0.00035616,7]
[424138629,1780607502000,-674.85340265,0.00035616,7]
[424138627,1780607502000,-674.85340265,0.00035616,7]
[424138628,1780607502000,-674.85340265,0.00035616,7]
[424138632,1780607502000,-674.85340265,0.00035616,7]
[424138635,1780607502000,-674.85340265,0.00035616,7]
[424138634,1780607502000,-674.85340265,0.00035616,7]
[424138633,1780607502000,-674.85340265,0.00035616,7]
[424138638,1780607502000,-674.85340265,0.00035616,7]
[424138640,1780607502000,-674.85340265,0.00035616,7]
[424138641,1780607502000,-674.85340265,0.00035616,7]
[424138637,1780607502000,-674.85340265,0.00035616,7]
[424138642,1780607502000,-674.85340265,0.00035616,7]
[424138636,1780607502000,-674.85340265,0.00035616,7]
[424138639,1780607502000,-674.85340265,0.00035616,7]
[424138676,1780607502000,-674.85340265,0.00035616,7]
[424138653,1780607502000,-674.85340265,0.00035616,7]
[424138643,1780607502000,-674.85340265,0.00035616,7]
[424138655,1780607502000,-674.85340265,0.00035616,7]
[424138678,1780607502000,-674.85340265,0.00035616,7]
[424138645,1780607502000,-674.85340265,0.00035616,7]
[424138672,1780607502000,-674.85340265,0.00035616,7]
[424138712,1780607502000,-500.0,0.00037808,11]
[424138715,1780607502000,-46554.77,0.00037808,11]
[424138705,1780607502000,-674.85340265,0.00035616,7]
[424138708,1780607502000,-674.85340265,0.00035616,7]
[424138706,1780607502000,-674.85340265,0.00035616,7]
[424138707,1780607502000,-674.85340265,0.00035616,7]
[424138709,1780607502000,-674.85340265,0.00035616,7]
[424138711,1780607502000,-152.0,0.00037577,7]
[424138714,1780607502000,-500.0,0.00037808,2]
[424138710,1780607502000,-512.85,0.00035988,30]
[424138713,1780607502000,-4341.14,0.00037808,11]
[424138717,1780607502000,-500.0,0.00037863,11]
[424138718,1780607502000,-4341.14,0.00037863,11]
[424138719,1780607502000,-500.0,0.00037863,2]
[424138720,1780607502000,-36952.17456118,0.00037863,11]
[424138723,1780607502000,-500.0,0.00037917,11]
[424138721,1780607502000,-9602.59543882,0.00037863,11]
[424138724,1780607502000,-4341.14,0.00037917,11]
[424138725,1780607502000,-500.0,0.00037917,2]
[424138722,1780607502000,-622.97,0.00037863,11]
[424138726,1780607502000,-46554.77,0.00037917,11]
[424138728,1780607502000,-4341.14,0.00037972,11]
[424138727,1780607502000,-500.0,0.00037972,11]
[424138704,1780607502000,-749.83711406,0.00035616,7]
[424138700,1780607502000,-674.85340265,0.00035616,7]
[424138716,1780607502000,-622.97,0.00037808,11]
[424138697,1780607502000,-674.85340265,0.00035616,7]
[424138675,1780607502000,-674.85340265,0.00035616,7]
[424138671,1780607502000,-674.85340265,0.00035616,7]
[424138679,1780607502000,-674.85340265,0.00035616,7]
[424138681,1780607502000,-674.85340265,0.00035616,7]
[424138685,1780607502000,-674.85340265,0.00035616,7]
[424138691,1780607502000,-674.85340265,0.00035616,7]
[424138682,1780607502000,-674.85340265,0.00035616,7]
[424138701,1780607502000,-749.83711406,0.00035616,7]
[424138683,1780607502000,-674.85340265,0.00035616,7]